bitfinex/quotes_ETHUSD_20251026
["timestamp","ask_amount","ask_price","bid_price","bid_amount"]
[1761504818910,0.001,4076.8,4076.7,7.2165644]
[1761504821045,0.001,4076.8,4076.7,7.4070644]
[1761504821911,0.1008,4076.8,4076.7,1.6273488]
[1761504822123,0.1008,4076.8,4076.7,0.1905]
[1761504822309,0.1008,4076.8,4076.7,0.84801854]
[1761504822510,0.1008,4076.8,4076.7,0.1905]
[1761504822907,0.1008,4076.8,4076.5,0.77991854]
[1761504823354,0.1008,4076.8,4076.6,0.1905]
[1761504823845,0.1008,4076.8,4076.6,2.64352056]
[1761504824810,0.1008,4076.8,4076.6,0.1905]
[1761504829057,0.1008,4076.8,4076.6,2.64352358]
[1761504832032,0.001,4076.8,4076.7,2.4529644]
[1761504832238,0.001,4076.8,4076.7,3.11048294]
[1761504832451,0.001,4076.8,4076.7,3.30098294]
[1761504833066,0.001,4076.8,4076.7,10.2977156]
[1761504833265,0.001,4076.8,4076.7,11.8529156]
[1761504833573,0.001,4076.8,4076.7,13.6186644]
[1761504835368,0.001,4076.8,4076.7,9.25794651]
[1761504838105,0.1008,4076.8,4076.7,9.25794651]
[1761504839082,0.001,4076.8,4076.7,9.25794651]
[1761504841164,0.001,4076.8,4076.7,9.70924651]
[1761504841365,0.001,4076.8,4076.7,9.25794651]
[1761504844082,0.001,4076.8,4076.7,9.68644651]
[1761504844282,0.001,4076.8,4076.7,9.25794651]
[1761504846780,0.1008,4076.8,4076.7,8.5981132]
[1761504847086,0.1008,4076.8,4076.7,8.4076132]
[1761504848195,0.001,4076.8,4076.7,7.0931644]
[1761504848489,0.001,4076.8,4076.7,8.40940463]
[1761504848673,0.001,4076.8,4076.7,7.0931644]
[1761504848873,0.001,4076.8,4076.7,8.49402042]
[1761504849392,0.001,4076.8,4076.7,9.8102992]
[1761504849581,0.1,4076.8,4076.7,8.40944318]
[1761504850265,0.001,4076.8,4076.7,8.40944318]
[1761504852997,0.001,4076.8,4076.7,7.0931644]
[1761504855498,0.001,4076.8,4076.7,7.2155644]
[1761504856897,0.001,4076.8,4076.7,4.7626]
[1761504857081,0.2795,4076.8,4076.7,7.2155644]
[1761504859411,0.1,4076.8,4076.7,7.2155644]
[1761504859611,0.001,4076.8,4076.7,7.2155644]
[1761504861411,0.1,4076.8,4076.7,7.2155644]
[1761504864923,0.001,4076.8,4076.7,1.6776]
[1761504865084,0.1,4076.8,4076.7,4.6402]
[1761504866321,0.1,4076.8,4076.7,5.95995293]
[1761504866830,0.1,4076.8,4076.7,2.87495293]
[1761504867427,0.1,4076.8,4076.7,1.5552]
[1761504869197,0.1,4076.8,4076.7,0.87960015]
[1761504871235,0.2876434,4076.8,4076.7,0.87960015]
[1761504871436,0.2876434,4076.8,4076.5,0.65967342]
[1761504871437,0.1,4076.8,4076.5,0.65967342]
[1761504871604,0.099,4076.7,4076.5,0.65967342]
[1761504871937,0.1,4076.8,4076.5,0.65967342]
[1761504872236,2.55291161,4076.8,4076.4,0.66167342]
[1761504872597,0.099,4076.7,4076.4,0.66167342]
[1761504873623,2.55197359,4076.7,4076.4,0.66167342]
[1761504873936,3.0716751,4076.7,4076.4,0.66167342]
[1761504874102,0.099,4076.6,4076.4,0.66167342]
[1761504874298,0.099,4076.6,4076.4,0.002]
[1761504875638,2.55204843,4076.6,4076.4,0.002]
[1761504875806,0.40627499,4076.5,4076.4,0.002]
[1761504879038,0.099,4076.5,4076.4,0.002]
[1761504879942,2.9726698,4076.7,4076.4,0.002]
[1761504880239,0.099,4076.6,4076.4,0.002]
[1761504881563,0.1224,4076.5,4076.4,0.002]
[1761504882027,0.2214,4076.5,4076.4,0.002]
[1761504882224,2.89499173,4076.5,4076.4,0.002]
[1761504882428,2.87159173,4076.5,4076.4,0.002]
[1761504882921,5.95459173,4076.5,4076.4,0.002]
[1761504884693,11.15335555,4076.5,4076.4,0.002]
[1761504884830,12.70855555,4076.5,4076.4,0.002]
[1761504886533,12.80672722,4076.5,4076.4,0.002]
[1761504892369,12.92912722,4076.5,4076.4,0.002]
[1761504892783,8.1148434,4076.5,4076.4,0.002]
[1761504893080,12.80672722,4076.5,4076.4,0.002]
[1761504902893,12.92912722,4076.5,4076.4,0.002]
[1761504903590,12.93012722,4076.5,4076.4,0.002]
[1761504904791,2.96026567,4076.0,4075.9,1e-08]
[1761504904993,13.21462698,4076.0,4075.9,1e-08]
[1761504905692,13.31282227,4076.0,4075.9,1e-08]
[1761504906877,13.21462698,4076.0,4075.9,1e-08]
[1761504907704,13.21462698,4076.0,4075.5,0.002]
[1761504907705,2.96050645,4075.6,4075.5,0.002]
[1761504907868,12.59364092,4075.6,4075.5,0.002]
[1761504908197,12.81504092,4075.6,4075.5,0.002]
[1761504912690,12.71604092,4075.6,4075.5,0.002]
[1761504912995,12.81504092,4075.6,4075.5,0.002]
[1761504919680,2.96074729,4075.2,4075.1,0.002]
[1761504919986,12.74742584,4075.2,4075.1,0.002]
[1761504920317,12.84642584,4075.2,4075.1,0.002]
[1761504922244,2.96080751,4075.1,4075.0,1e-08]
[1761504922520,7.75169133,4075.1,4075.0,1e-08]
[1761504926027,7.65269133,4075.1,4075.0,1e-08]
[1761504926339,9.42810577,4075.1,4075.0,1e-08]
[1761504929708,8.77491956,4075.1,4075.0,1e-08]
[1761504931622,8.87391956,4075.1,4075.0,1e-08]
[1761504933811,8.77491956,4075.1,4075.0,1e-08]
[1761504935733,8.87391956,4075.1,4075.0,1e-08]
[1761504936430,8.77491956,4075.1,4075.0,1e-08]
[1761504938644,9.53402942,4075.1,4075.0,1e-08]
[1761504939147,11.08922942,4075.1,4075.0,1e-08]
[1761504939338,10.43011956,4075.1,4075.0,1e-08]
[1761504941047,2.9610484,4074.7,4074.6,1e-08]
[1761504941251,11.51954601,4074.7,4074.6,1e-08]
[1761504947875,11.61854601,4074.7,4074.6,1e-08]
[1761504948025,11.51954601,4074.7,4074.6,1e-08]
[1761504957776,14.09954601,4074.7,4074.6,1e-08]
[1761504958099,13.5920111,4074.7,4074.6,1e-08]
[1761504966412,13.5920111,4074.7,4074.6,0.05120001]
[1761504968315,14.25443546,4074.7,4074.6,0.05120001]
[1761504975232,10.33813785,4074.7,4074.6,0.05120001]
[1761504975438,7.6002484,4074.7,4074.6,0.52500001]
[1761504978956,6.0450484,4074.7,4074.6,0.52500001]
[1761504979112,2.9620484,4074.7,4074.6,0.52500001]
[1761504979450,6.0450484,4074.7,4074.6,0.52500001]
[1761504981416,6.0450484,4074.7,4073.8,0.66423719]
[1761504981417,0.50688,4074.3,4073.6,0.002]
[1761504981751,0.50688,4074.3,4073.7,0.4758]
[1761504981752,4.51679058,4073.8,4073.7,0.4758]
[1761504981956,7.60879058,4073.8,4073.7,0.4758]
[1761504982873,7.60879058,4073.8,4073.7,0.002]
[1761504982874,11.52508819,4073.8,4073.7,0.002]
[1761504983948,12.92306015,4073.8,4073.7,0.002]
[1761504987250,12.92306015,4073.8,4073.7,0.4758]
[1761504989894,9.00676254,4073.8,4073.7,0.4758]
[1761504991478,9.12916254,4073.8,4073.7,0.4758]
[1761504991768,9.13016254,4073.8,4073.7,0.4758]
[1761504999789,2.57811058,4073.8,4073.7,0.4758]
[1761505000091,5.66811058,4073.8,4073.7,0.4758]
[1761505000790,5.66911058,4073.8,4073.7,0.4758]
[1761505005100,6.17599058,4073.8,4073.7,0.002]
[1761505008958,6.59569058,4073.8,4073.7,0.002]
[1761505009394,7.97084752,4073.8,4073.7,0.002]
[1761505009596,7.55114752,4073.8,4073.7,0.002]
[1761505015205,9.10634752,4073.8,4073.7,0.002]
[1761505017374,9.20534752,4073.8,4073.7,0.002]
[1761505018313,9.10634752,4073.8,4073.7,0.002]
[1761505018679,9.20534752,4073.8,4073.7,0.002]
[1761505020407,9.10634752,4073.8,4073.7,0.002]
[1761505021804,9.20534752,4073.8,4073.7,0.002]
[1761505023413,2.45489137,4073.5,4073.4,0.002]
[1761505023600,2.45489137,4073.5,4073.2,0.002]
[1761505023601,4.5170919,4073.3,4073.2,0.002]
[1761505023802,4.6394919,4073.3,4073.2,0.002]
[1761505024008,4.7384919,4073.3,4073.2,0.002]
[1761505026697,7.7294919,4073.3,4073.2,0.002]
[1761505028113,7.6070919,4073.3,4073.2,0.002]
[1761505028415,8.85334471,4073.3,4073.2,0.002]
[1761505029506,5.76334471,4073.3,4073.2,0.002]
[1761505029712,8.85334471,4073.3,4073.2,0.002]
[1761505036941,8.95234471,4073.3,4073.2,0.002]
[1761505037824,8.95234471,4073.3,4072.8,0.002]
[1761505037825,2.96207273,4073.0,4072.8,0.002]
[1761505038024,12.30752015,4073.0,4072.8,0.002]
[1761505038347,12.52892015,4073.0,4072.8,0.002]
[1761505041426,12.42992015,4073.0,4072.8,0.002]
[1761505042044,12.52892015,4073.0,4072.8,0.002]
[1761505042240,13.68504404,4073.0,4072.8,0.002]
[1761505043537,13.58604404,4073.0,4072.8,0.002]
[1761505045256,10.49704404,4073.0,4072.8,0.002]
[1761505045442,13.58604404,4073.0,4072.8,0.002]
[1761505046441,8.88579662,4073.0,4072.9,0.4429]
[1761505048458,2.57759273,4073.0,4072.9,0.4429]
[1761505048659,5.66759273,4073.0,4072.9,0.4429]
[1761505049038,6.17447273,4073.0,4072.9,0.4429]
[1761505056459,6.17447273,4073.0,4072.9,0.002]
[1761505056644,6.17447273,4073.0,4072.9,0.4429]
[1761505063367,6.17447273,4073.0,4072.9,0.4655]
[1761505087605,10.09260475,4073.0,4072.9,0.002]
[1761505087815,10.95565924,4073.0,4072.9,0.002]
[1761505090978,0.1805,4072.6,4072.4,0.002]
[1761505091174,15.5386382,4072.5,4072.4,0.002]
[1761505091407,17.60162478,4072.5,4072.4,0.002]
[1761505091703,14.34629589,4072.5,4072.4,0.002]
[1761505092015,14.44457345,4072.5,4072.4,0.002]
[1761505092549,13.78177032,4072.5,4072.4,0.002]
[1761505100228,13.68197032,4072.5,4072.4,0.002]
[1761505100821,13.78177032,4072.5,4072.4,0.002]
[1761505101030,13.90417032,4072.5,4072.4,0.002]
[1761505105826,13.80437032,4072.5,4072.4,0.002]
[1761505106754,13.90417032,4072.5,4072.4,0.002]
[1761505107049,13.80437032,4072.5,4072.4,0.002]
[1761505107250,13.90417032,4072.5,4072.4,0.002]
[1761505111949,13.90517032,4072.5,4072.4,0.002]
[1761505112357,2.96255506,4072.2,4072.1,0.01]
[1761505112651,10.08908708,4072.2,4072.1,0.01]
[1761505112856,10.18888708,4072.2,4072.1,0.01]
[1761505113054,10.2871685,4072.2,4072.1,0.01]
[1761505113823,11.07525177,4072.2,4072.1,0.01]
[1761505114023,11.93830626,4072.2,4072.1,0.01]
[1761505117959,8.85230626,4072.2,4072.1,0.01]
[1761505118147,11.83850626,4072.2,4072.1,0.01]
[1761505120557,4.51781536,4072.1,4072.0,0.002]
[1761505120761,4.51811693,4071.6,4071.5,0.002]
[1761505120926,7.60411693,4071.6,4071.5,0.002]
[1761505121123,7.72731693,4071.6,4071.5,0.002]
[1761505141484,2.96291693,4071.6,4071.5,0.4578]
[1761505141672,6.04891693,4071.6,4071.5,0.4578]
[1761505141873,0.001,4072.3,4071.5,0.4578]
[1761505142060,0.001,4072.3,4072.2,0.2278]
[1761505142061,2.45661476,4072.3,4072.2,0.2278]
[1761505142262,6.04949476,4072.3,4072.2,0.2278]
[1761505142475,5.54261476,4072.3,4072.2,0.6836]
[1761505142677,6.04949476,4072.3,4072.2,0.6836]
[1761505151606,6.17189476,4072.3,4072.2,0.6836]
[1761505157007,2.45603693,4071.6,4071.5,0.002]
[1761505157209,5.66523693,4071.6,4071.5,0.002]
[1761505157628,3.2092,4071.6,4071.5,0.4687]
[1761505160284,3.2092,4071.6,4071.5,0.76118831]
[1761505160485,0.001,4072.3,4071.6,2.45602772]
[1761505160730,0.1224,4072.0,4071.7,0.4667]
[1761505161019,3.086,4071.9,4071.7,0.4667]
[1761505161322,3.086,4071.9,4071.8,0.32172736]
[1761505161627,3.086,4071.9,4071.8,0.78842736]
[1761505161825,3.086,4071.9,4071.8,0.4667]
[1761505168722,3.085,4071.9,4071.8,0.4667]
[1761505170425,0.1224,4072.0,4071.8,0.4667]
[1761505170722,3.085,4071.9,4071.8,0.4667]
[1761505179301,3.085,4071.9,4071.8,0.4687]
[1761505179716,3.086,4071.9,4071.8,0.4687]
[1761505199943,0.001,4071.9,4071.8,0.002]
[1761505200145,3.086,4071.9,4071.8,0.4709]
[1761505200530,0.001,4071.9,4071.8,0.4709]
[1761505200938,3.086,4071.9,4071.8,0.76379242]
[1761505201127,3.086,4071.9,4071.8,0.41729242]
[1761505201337,3.086,4071.9,4071.8,0.88619242]
[1761505201542,3.086,4071.9,4071.8,0.5933]
[1761505202046,3.086,4071.9,4071.8,0.1244]
[1761505202237,3.086,4071.9,4071.8,0.002]
[1761505202548,3.086,4071.9,4071.8,0.4709]
[1761505203435,3.086,4071.9,4071.8,0.002]
[1761505205426,3.086,4071.9,4071.8,0.4341]
[1761505208267,0.001,4071.9,4071.8,0.4341]
[1761505208465,3.086,4071.9,4071.8,0.4341]
[1761505210134,3.086,4071.9,4071.8,0.002]
[1761505210534,5.54185598,4071.9,4071.8,0.002]
[1761505211432,3.086,4071.9,4071.8,0.002]
[1761505211642,5.54185598,4071.9,4071.8,0.002]
[1761505217194,5.79765598,4071.9,4071.8,0.002]
[1761505217347,6.61955562,4071.9,4071.8,0.002]
[1761505217669,6.51995562,4071.9,4071.8,0.002]
[1761505219273,6.61955562,4071.9,4071.8,0.002]
[1761505221478,6.51995562,4071.9,4071.8,0.002]
[1761505221856,7.12643562,4071.9,4071.8,0.002]
[1761505229008,7.02683562,4071.9,4071.8,0.002]
[1761505229785,6.87063562,4071.9,4071.8,0.002]
[1761505238716,0.50788,4071.9,4071.8,0.002]
[1761505238926,0.001,4071.9,4071.8,0.4297]
[1761505241830,0.001,4071.9,4071.8,0.002]
[1761505242599,2.45685598,4071.9,4071.8,0.002]
[1761505244927,3.11883598,4071.9,4071.8,0.002]
[1761505245128,4.08539548,4071.9,4071.8,0.002]
[1761505245955,3.98469548,4071.9,4071.8,0.002]
[1761505246233,4.08539548,4071.9,4071.8,0.002]
[1761505246856,3.82959548,4071.9,4071.8,0.002]
[1761505248745,3.93079548,4071.9,4071.8,0.002]
[1761505248951,4.05319548,4071.9,4071.8,0.002]
[1761505252866,4.15147545,4071.9,4071.8,0.002]
[1761505254132,7.23547545,4071.9,4071.8,0.002]
[1761505256117,7.13427545,4071.9,4071.8,0.002]
[1761505257672,4.05027545,4071.9,4071.8,0.002]
[1761505257860,7.13427545,4071.9,4071.8,0.002]
[1761505258671,0.63028,4071.9,4071.8,0.4297]
[1761505258833,6.17013598,4071.9,4071.8,0.4297]
[1761505259176,6.17013598,4071.9,4071.8,0.002]
[1761505268663,6.42433598,4071.9,4071.8,0.002]
[1761505269154,6.17013598,4071.9,4071.8,0.002]
[1761505271477,6.17013598,4071.9,4071.8,0.4311]
[1761505274100,6.17013598,4071.9,4071.8,0.002]
[1761505280524,7.04262408,4071.9,4071.8,0.002]
[1761505280701,7.29842408,4071.9,4071.8,0.002]
[1761505282321,7.39670405,4071.9,4071.8,0.002]
[1761505283087,8.95190405,4071.9,4071.8,0.002]
[1761505283824,8.95190405,4071.9,4071.3,0.002]
[1761505283825,2.96303758,4071.4,4071.3,0.002]
[1761505284124,2.96303758,4071.4,4071.1,1e-08]
[1761505284125,4.51835824,4071.2,4071.1,1e-08]
[1761505284614,6.45895824,4071.2,4071.1,1e-08]
[1761505286413,7.1184579,4071.2,4071.1,1e-08]
[1761505287330,6.45895824,4071.2,4071.1,1e-08]
[1761505287624,7.1184579,4071.2,4071.1,1e-08]
[1761505287943,8.98232791,4071.2,4071.1,1e-08]
[1761505288224,8.32282825,4071.2,4071.1,1e-08]
[1761505292427,8.42114977,4071.2,4071.1,1e-08]
[1761505294032,8.54434977,4071.2,4071.1,1e-08]
[1761505294543,14.88434977,4071.2,4071.1,1e-08]
[1761505295532,12.61828505,4071.2,4071.1,1e-08]
[1761505295738,15.80288505,4071.2,4071.1,1e-08]
[1761505297754,23.65213647,4071.2,4071.1,1e-08]
[1761505298249,24.17837762,4071.2,4071.1,1e-08]
[1761505298949,2.96327891,4071.0,4070.9,1e-08]
[1761505299256,5.78959183,4071.0,4070.9,1e-08]
[1761505299417,5.88919183,4071.0,4070.9,1e-08]
[1761505299620,5.9875136,4071.0,4070.9,1e-08]
[1761505299840,2.96345994,4070.7,4070.6,0.002]
[1761505300114,12.4376268,4070.7,4070.6,0.002]
[1761505300318,19.6501149,4070.7,4070.6,0.002]
[1761505300551,19.74844247,4070.7,4070.6,0.002]
[1761505302469,2.96370136,4070.3,4070.2,0.002]
[1761505302676,9.97332707,4070.3,4070.2,0.002]
[1761505302968,10.09652707,4070.3,4070.2,0.002]
[1761505303137,10.39283083,4070.3,4070.2,0.002]
[1761505304571,2.58002136,4070.3,4070.2,0.7042]
[1761505304867,6.17190136,4070.3,4070.2,0.7042]
[1761505305172,10.09652707,4070.3,4070.2,0.7042]
[1761505306064,10.09652707,4070.3,4070.2,0.4734]
[1761505307279,10.09652707,4070.3,4070.2,0.002]
[1761505307884,10.09652707,4070.3,4070.2,0.4734]
[1761505308446,7.01152707,4070.3,4070.2,0.4734]
[1761505308684,10.09652707,4070.3,4070.2,0.4734]
[1761505310153,6.17190136,4070.3,4070.2,0.4734]
[1761505311257,6.69970665,4070.3,4070.2,0.4734]
[1761505312759,3.61470665,4070.3,4070.2,0.4734]
[1761505313030,6.69970665,4070.3,4070.2,0.4734]
[1761505315474,3.61470665,4070.3,4070.2,0.4734]
[1761505315792,6.69970665,4070.3,4070.2,0.4734]
[1761505319304,6.17190136,4070.3,4070.2,0.4734]
[1761505321303,6.70055448,4070.3,4070.2,0.4734]
[1761505324120,3.61555448,4070.3,4070.2,0.4734]
[1761505324335,6.70055448,4070.3,4070.2,0.4734]
[1761505326007,6.17190136,4070.3,4070.2,0.4734]
[1761505327030,0.1232,4070.3,4070.2,0.4734]
[1761505327209,3.2082,4070.3,4070.2,0.4734]
[1761505330527,0.1232,4070.3,4070.2,0.4734]
[1761505330826,3.2082,4070.3,4070.2,0.4734]
[1761505331493,5.66502136,4070.3,4070.2,0.4734]
[1761505332153,3.2082,4070.3,4070.2,0.4734]
[1761505334241,0.1232,4070.5,4070.2,0.4734]
[1761505334445,3.085,4070.4,4070.2,0.4734]
[1761505345340,3.085,4070.4,4070.3,0.32962978]
[1761505345856,3.085,4070.4,4070.3,0.4592]
[1761505348270,0.001,4070.6,4070.4,2.45675775]
[1761505348750,3.086,4070.6,4070.4,2.45675775]
[1761505348954,3.086,4070.6,4070.5,0.4592]
[1761505358978,3.086,4070.6,4070.5,2.91590065]
[1761505359188,3.086,4070.6,4070.5,3.62121873]
[1761505359781,3.086,4070.6,4070.5,1.16451808]
[1761505360090,3.086,4070.6,4070.5,3.62121873]
[1761505360261,3.086,4070.6,4070.5,1.16451808]
[1761505360773,3.086,4070.6,4070.5,0.4592]
[1761505361694,3.086,4070.6,4070.5,2.91590065]
[1761505364607,3.086,4070.6,4070.5,0.4592]
[1761505365997,3.086,4070.6,4070.5,2.91590065]
[1761505367599,3.086,4070.6,4070.5,0.4592]
[1761505371573,3.086,4070.6,4070.5,0.002]
[1761505381306,6.14852029,4070.6,4070.5,0.002]
[1761505381684,6.67773603,4070.6,4070.5,0.002]
[1761505387201,6.77605514,4070.6,4070.5,0.002]
[1761505388600,8.33125514,4070.6,4070.5,0.002]
[1761505391626,8.45445514,4070.6,4070.5,0.002]
[1761505391931,10.0324202,4070.6,4070.5,0.002]
[1761505401143,2.96370136,4070.3,4070.2,0.002]
[1761505401314,12.96246902,4070.3,4070.2,0.002]
[1761505401515,13.06146902,4070.3,4070.2,0.002]
[1761505401814,14.90348292,4070.3,4070.2,0.002]
[1761505402120,14.90348292,4070.3,4070.0,0.002]
[1761505402121,4.51902208,4070.1,4070.0,0.002]
[1761505402331,5.04823782,4070.1,4070.0,0.002]
[1761505402643,5.14723782,4070.1,4070.0,0.002]
[1761505402945,7.05789842,4070.1,4070.0,0.002]
[1761505409346,7.71870616,4070.1,4070.0,0.002]
[1761505412002,7.84190616,4070.1,4070.0,0.002]
[1761505412307,7.18109842,4070.1,4070.0,0.002]
[1761505412501,7.8409676,4070.1,4070.0,0.002]
[1761505412668,7.18109842,4070.1,4070.0,0.002]
[1761505412874,7.84095554,4070.1,4070.0,0.002]
[1761505413471,10.82695554,4070.1,4070.0,0.002]
[1761505413898,10.16709842,4070.1,4070.0,0.002]
[1761505419801,14.09289448,4070.1,4070.0,0.002]
[1761505423506,14.09389448,4070.1,4070.0,0.002]
[1761505428513,14.7537516,4070.1,4070.0,0.002]
[1761505431017,14.8527516,4070.1,4070.0,0.002]
[1761505431396,14.7537516,4070.1,4070.0,0.002]
[1761505432725,14.8527516,4070.1,4070.0,0.002]
[1761505433792,14.7537516,4070.1,4070.0,0.002]
[1761505435819,14.75456372,4070.1,4070.0,0.002]
[1761505438338,14.09351651,4070.1,4070.0,0.002]
[1761505440029,14.19251651,4070.1,4070.0,0.002]
[1761505440340,14.09351651,4070.1,4070.0,0.002]
[1761505440704,14.974317,4070.1,4070.0,0.002]
[1761505440903,15.073317,4070.1,4070.0,0.002]
[1761505441433,14.19267802,4070.1,4070.0,0.002]
[1761505446234,15.07399309,4070.1,4070.0,0.002]
[1761505447451,15.97399309,4070.1,4070.0,0.002]
[1761505447849,12.78999309,4070.1,4070.0,0.002]
[1761505448165,15.87499309,4070.1,4070.0,0.002]
[1761505448463,15.97399309,4070.1,4070.0,0.002]
[1761505449260,15.97372607,4070.1,4070.0,0.002]
[1761505449765,15.87472607,4070.1,4070.0,0.002]
[1761505450265,15.97372607,4070.1,4070.0,0.002]
[1761505456930,15.87472607,4070.1,4070.0,0.002]
[1761505462276,14.993411,4070.1,4070.0,0.002]
[1761505465476,15.092411,4070.1,4070.0,0.002]
[1761505466280,14.993411,4070.1,4070.0,0.002]
[1761505468291,11.908411,4070.1,4070.0,0.002]
[1761505468500,14.993411,4070.1,4070.0,0.002]
[1761505471684,11.908411,4070.1,4070.0,0.002]
[1761505471994,12.1827504,4070.1,4070.0,0.4487]
[1761505474392,12.1827504,4070.1,4070.0,0.002]
[1761505479772,12.96832686,4070.1,4070.0,0.002]
[1761505480307,13.06732686,4070.1,4070.0,0.002]
[1761505480677,12.96832686,4070.1,4070.0,0.002]
[1761505480891,14.662702,4070.1,4070.0,0.002]
[1761505481285,14.761702,4070.1,4070.0,0.002]
[1761505482526,2.9640032,4069.8,4069.7,1e-08]
[1761505482694,8.13293546,4069.8,4069.7,1e-08]
[1761505482898,10.05390814,4069.8,4069.7,1e-08]
[1761505492950,10.05390814,4069.8,4069.7,0.44440001]
[1761505493554,10.05390814,4069.8,4069.7,1e-08]
[1761505493852,10.05390814,4069.8,4069.7,0.44440001]
[1761505494154,8.25613546,4069.8,4069.7,0.44440001]
[1761505494336,8.25613546,4069.8,4069.7,1e-08]
[1761505494545,8.25613546,4069.8,4069.7,0.44440001]
[1761505496930,8.25613546,4069.8,4069.7,1e-08]
[1761505497132,8.25513546,4069.8,4069.7,0.44440001]
[1761505500649,8.25513546,4069.8,4069.7,1e-08]
[1761505500831,9.62853089,4069.8,4069.7,1e-08]
[1761505506018,8.25513546,4069.8,4069.7,0.45120001]
[1761505507550,8.25613546,4069.8,4069.7,0.45120001]
[1761505510026,8.91779024,4069.8,4069.7,1e-08]
[1761505510427,8.91779024,4069.8,4069.7,0.44810001]
[1761505512022,8.91779024,4069.8,4069.7,1e-08]
[1761505516876,8.91779024,4069.8,4069.7,0.44810001]
[1761505520090,8.91779024,4069.8,4069.7,1e-08]
[1761505522582,9.36789024,4069.8,4069.7,1e-08]
[1761505523080,9.36789024,4069.8,4069.7,0.44810001]
[1761505528795,8.91779024,4069.8,4069.7,0.44810001]
[1761505530196,4.27859024,4069.8,4069.7,1e-08]
[1761505530370,4.27859024,4069.8,4069.7,0.44810001]
[1761505530371,6.70093546,4069.8,4069.7,0.44810001]
[1761505533197,3.61693546,4069.8,4069.7,0.44810001]
[1761505533505,0.001,4069.8,4069.7,0.44810001]
[1761505533675,3.085,4069.8,4069.7,0.89620002]
[1761505534180,3.085,4069.8,4069.7,1.24427444]
[1761505534697,3.085,4069.8,4069.7,0.89620002]
[1761505535766,5.5421232,4069.8,4069.7,0.89620002]
[1761505536701,3.085,4069.8,4069.7,0.89620002]
[1761505537600,6.0490032,4069.8,4069.7,0.44810001]
[1761505540691,6.0490032,4069.8,4069.7,1e-08]
[1761505541279,6.0490032,4069.8,4069.7,0.46080001]
[1761505545611,6.0490032,4069.8,4069.7,1e-08]
[1761505545980,6.0490032,4069.8,4069.7,0.46080001]
[1761505546707,6.0490032,4069.8,4069.7,1e-08]
[1761505547497,6.1722032,4069.8,4069.7,1e-08]
[1761505564136,6.1722032,4069.8,4069.7,0.43160001]
[1761505565537,6.1712032,4069.8,4069.7,0.43160001]
[1761505566114,5.6643232,4069.8,4069.7,0.43160001]
[1761505566443,3.2072,4069.8,4069.7,0.43160001]
[1761505567238,5.6643232,4069.8,4069.7,0.43160001]
[1761505568025,0.1242,4069.8,4069.7,0.43160001]
[1761505568226,3.2072,4069.8,4069.7,0.43160001]
[1761505569104,3.2072,4069.8,4069.7,0.72089566]
[1761505569735,0.1242,4069.8,4069.7,0.43160001]
[1761505570036,3.084,4069.8,4069.7,0.43160001]
[1761505571031,3.085,4069.8,4069.7,0.43160001]
[1761505573835,0.001,4069.8,4069.7,2.88878358]
[1761505574146,3.084,4069.8,4069.7,2.91335541]
[1761505574343,3.084,4069.8,4069.7,3.90480901]
[1761505574918,0.001,4069.8,4069.7,3.90480901]
[1761505578631,0.001,4069.8,4069.7,4.64203563]
[1761505579254,0.001,4069.8,4069.7,10.14694416]
[1761505579463,0.001,4069.8,4069.7,10.12237233]
[1761505580318,0.001,4069.8,4069.7,10.24557233]
[1761505582151,0.001,4069.8,4069.7,6.19723563]
[1761505592037,0.001,4069.8,4069.7,10.20043563]
[1761505592271,0.001,4069.8,4069.7,11.52018856]
[1761505592774,0.001,4069.8,4069.7,11.67543563]
[1761505597803,0.001,4069.8,4069.7,12.18231563]
[1761505598006,0.001,4069.8,4069.7,11.67543563]
[1761505598303,0.001,4069.8,4069.7,14.60483649]
[1761505599767,0.001,4069.8,4069.7,10.72483649]
[1761505599991,0.001,4069.8,4069.7,9.40443563]
[1761505601604,0.001,4069.8,4069.7,8.97283563]
[1761505601806,0.001,4069.8,4069.7,5.88883563]
[1761505602104,0.001,4069.8,4069.7,8.97283563]
[1761505602300,0.001,4069.8,4069.7,5.88883563]
[1761505607305,0.001,4069.8,4069.7,7.20923649]
[1761505611587,0.001,4069.8,4069.7,0.86042663]
[1761505611786,0.1012,4069.8,4069.7,0.12320001]
[1761505633661,0.1012,4069.8,4069.7,1e-08]
[1761505633662,2.5583232,4069.8,4069.7,1e-08]
[1761505642161,0.1012,4069.8,4069.7,1e-08]
[1761505642871,0.001,4069.8,4069.7,1e-08]
[1761505648370,3.084,4069.8,4069.7,1e-08]
[1761505652740,3.084,4069.8,4069.7,0.42900001]
[1761505653435,3.084,4069.8,4069.7,1e-08]
[1761505672884,5.5411232,4069.8,4069.7,1e-08]
[1761505674318,3.084,4069.8,4069.7,1e-08]
[1761505676109,5.5411232,4069.8,4069.7,1e-08]
[1761505677009,10.89316609,4069.8,4069.7,1e-08]
[1761505677176,10.99149438,4069.8,4069.7,1e-08]
[1761505685822,10.89249438,4069.8,4069.7,1e-08]
[1761505686224,10.99149438,4069.8,4069.7,1e-08]
[1761505686827,10.89316609,4069.8,4069.7,1e-08]
[1761505687728,11.42193394,4069.8,4069.7,1e-08]
[1761505691722,12.97713394,4069.8,4069.7,1e-08]
[1761505693936,13.07547541,4069.8,4069.7,1e-08]
[1761505695031,13.0747372,4069.8,4069.7,1e-08]
[1761505699010,9.9917372,4069.8,4069.7,1e-08]
[1761505699209,13.0757372,4069.8,4069.7,1e-08]
[1761505699412,4.52548923,4069.7,4069.6,0.002]
[1761505699613,6.85313418,4069.7,4069.6,0.002]